bitfinex-derivatives/quotes_SOLF0:USTF0_20241212
["timestamp","ask_amount","ask_price","bid_price","bid_amount"]
[1733982071731,2.28,232.97,232.91,12.54089185]
[1733982071937,2.28,232.99,232.91,12.54089185]
[1733982072326,2.28,232.99,232.95,2.1454]
[1733982072942,2.28,232.99,232.88,12.54089185]
[1733982073339,2.28,232.99,232.86,2.1461]
[1733982073740,2.28,232.99,232.85,12.54089185]
[1733982074737,2.1456,232.93,232.87,2.1461]
[1733982075041,2.28,232.92,232.87,2.1461]
[1733982076440,2.28,232.92,232.85,14.68709185]
[1733982076738,2.28,232.92,232.82,12.54089185]
[1733982077333,2.1458,232.9,232.85,2.1463]
[1733982078336,2.28,232.92,232.82,12.54089185]
[1733982080439,2.146,232.89,232.83,2.1464]
[1733982080743,2.28,232.92,232.82,12.54089185]
[1733982081544,2.28,232.92,232.79,12.54089185]
[1733982081745,2.28,232.92,232.76,12.54089185]
[1733982082041,12.54089185,232.9,232.71,4.9349]
[1733982082240,12.54089185,232.9,232.75,12.54089185]
[1733982082539,1.7319,232.89,232.79,2.1468]
[1733982082739,1.7319,232.89,232.78,12.54089185]
[1733982082951,1.7319,232.89,232.81,12.54089185]
[1733982084038,1.7319,232.89,232.83,2.1464]
[1733982084347,2.1459,232.9,232.81,12.54089185]
[1733982085339,2.1459,232.9,232.84,2.1463]
[1733982087650,2.28,232.92,232.84,2.1463]
[1733982087848,2.1459,232.89,232.84,2.1463]
[1733982090040,2.1459,232.89,232.81,12.54089185]
[1733982090241,2.1459,232.89,232.83,2.1465]
[1733982091759,2.146,232.88,232.83,2.1465]
[1733982092050,2.28,232.87,232.83,2.1465]
[1733982093853,2.28,232.87,232.83,2.1464]
[1733982094050,2.28,232.87,232.84,12.54089185]
[1733982094552,2.28,232.9,232.86,2.1462]
[1733982096552,2.1459,232.89,232.84,14.68719185]
[1733982096756,2.28,232.9,232.84,12.54089185]
[1733982097654,2.28,232.9,232.87,2.1461]
[1733982098749,2.1457,232.92,232.87,2.1461]
[1733982098954,2.1455,232.94,232.89,2.1459]
[1733982099259,3.2589,232.98,232.87,12.54089185]
[1733982099456,2.28,232.97,232.87,12.54089185]
[1733982099850,2.28,232.96,232.9,2.1458]
[1733982101550,2.1454,232.95,232.9,2.1458]
[1733982101756,2.28,232.94,232.9,2.1458]
[1733982101956,2.28,232.94,232.87,12.54089185]
[1733982102557,2.28,232.94,232.89,2.1459]
[1733982104559,2.28,232.94,232.9,2.1458]
[1733982106055,4.4255,232.94,232.88,2.146]
[1733982106451,4.4255,232.94,232.87,12.54089185]
[1733982107259,2.1456,232.92,232.9,8.0310502]
[1733982107755,2.28,232.94,232.9,8.0310502]
[1733982108662,4.4255,232.94,232.9,8.0310502]
[1733982108857,2.28,232.94,232.88,2.146]
[1733982109061,2.28,232.94,232.88,10.1770502]
[1733982109364,2.1458,232.91,232.88,8.0310502]
[1733982113673,2.1457,232.92,232.88,8.0310502]
[1733982117172,2.1457,232.92,232.88,10.1770502]
[1733982118268,2.1457,232.92,232.86,10.1771502]
[1733982118468,10.3110502,232.94,232.8,4.9332]
[1733982118669,8.0310502,232.92,232.84,8.0310502]
[1733982119270,2.146,232.88,232.84,10.1773502]
[1733982119475,2.28,232.87,232.84,10.1773502]
[1733982119677,2.28,232.87,232.84,2.1463]
[1733982119877,2.1465,232.83,232.79,8.0310502]
[1733982120178,2.28,232.82,232.79,8.0310502]
[1733982120378,2.1467,232.81,232.7,10.93716212]
[1733982120676,2.28,232.82,232.75,8.0310502]
[1733982121270,8.0310502,232.81,232.74,8.0310502]
[1733982121474,8.0310502,232.81,232.72,8.0310502]
[1733982121781,2.147,232.78,232.74,8.0310502]
[1733982121978,2.28,232.77,232.74,8.0310502]
[1733982122576,2.28,232.77,232.7,4.9915]
[1733982122577,2.28,232.77,232.76,8.0310502]
[1733982125386,2.28,232.77,232.75,14.70649303]
[1733982126482,2.28,232.8,232.76,2.1471]
[1733982128283,2.28,232.8,232.75,12.55929303]
[1733982128284,2.28,232.8,232.77,2.147]
[1733982129592,2.28,232.8,232.75,12.55929303]
[1733982129783,2.28,232.8,232.78,2.1469]
[1733982130981,2.28,232.8,232.75,12.55929303]
[1733982131185,2.28,232.82,232.79,2.1468]
[1733982131587,2.28,232.82,232.75,12.55929303]
[1733982131786,2.28,232.82,232.78,2.1469]
[1733982132186,2.28,232.82,232.75,12.55929303]
[1733982132693,4.4266,232.82,232.75,12.55929303]
[1733982132882,2.28,232.82,232.75,12.55929303]
[1733982135791,2.28,232.82,232.78,2.1469]
[1733982135990,2.28,232.81,232.78,2.1469]
[1733982138493,2.28,232.81,232.72,12.55929303]
[1733982138689,2.28,232.81,232.7,4.9915]
[1733982138889,2.147,232.77,232.71,2.1475]
[1733982139094,2.28,232.76,232.71,2.1475]
[1733982139291,2.28,232.76,232.7,12.55929303]
[1733982139496,2.28,232.76,232.75,2.1472]
[1733982140392,2.28,232.76,232.71,2.1475]
[1733982140697,4.4272,232.76,232.67,12.55929303]
[1733982141795,4.4272,232.76,232.7,2.1477]
[1733982141996,2.28,232.76,232.67,12.55929303]
[1733982142197,2.28,232.76,232.68,2.1478]
[1733982142398,2.28,232.76,232.67,12.55929303]
[1733982142995,4.4272,232.76,232.69,2.1478]
[1733982143195,2.28,232.76,232.67,12.55929303]
[1733982143489,3.3539,232.81,232.7,12.55929303]
[1733982143696,2.26,232.8,232.73,12.55929303]
[1733982143895,4.9057,232.88,232.76,12.55929303]
[1733982144098,2.26,232.87,232.76,12.55929303]
[1733982145199,2.26,232.87,232.79,2.1468]
[1733982145200,2.1464,232.84,232.79,2.1468]
[1733982145989,2.1465,232.83,232.77,2.1469]
[1733982146190,2.26,232.82,232.77,2.1469]
[1733982146487,4.4066,232.82,232.77,2.1469]
[1733982147197,4.4066,232.82,232.77,10.18614694]
[1733982147693,2.26,232.82,232.78,2.1469]
[1733982150499,2.26,232.82,232.79,8.03924694]
[1733982153394,2.26,232.82,232.68,2.26]
[1733982153591,2.26,232.82,232.75,8.03924694]
[1733982154602,2.26,232.82,232.76,2.1471]
[1733982154997,2.1468,232.8,232.76,2.1471]
[1733982155696,2.1468,232.8,232.74,8.03924694]
[1733982155896,2.1469,232.79,232.74,8.03924694]
[1733982156095,8.03924694,232.81,232.72,8.03924694]
[1733982156295,8.03924694,232.81,232.71,2.1475]
[1733982156500,8.03924694,232.81,232.64,5.1106]
[1733982156501,2.1472,232.76,232.7,8.03924694]
[1733982156702,2.26,232.75,232.7,8.03924694]
[1733982157703,2.26,232.75,232.72,8.03924694]
[1733982158500,2.1472,232.76,232.72,8.03924694]
[1733982158700,2.26,232.75,232.72,8.03924694]
[1733982159100,2.26,232.75,232.64,5.1106]
[1733982159300,2.26,232.77,232.74,8.03924694]
[1733982159496,2.26,232.77,232.76,8.03924694]
[1733982159696,2.26,232.81,232.76,8.03924694]
[1733982159899,4.9057,232.88,232.8,8.03924694]
[1733982160098,2.26,232.87,232.8,8.03924694]
[1733982160608,8.03924694,232.93,232.84,8.03924694]
[1733982160800,2.26,232.9,232.86,8.03924694]
[1733982161198,2.26,232.9,232.86,10.18544694]
[1733982161704,2.26,232.9,232.86,8.03924694]
[1733982162005,2.1459,232.89,232.84,8.03924694]
[1733982163404,2.26,232.9,232.84,8.03924694]
[1733982164002,4.4058,232.9,232.78,2.1469]
[1733982164197,4.4058,232.9,232.74,3.2736]
[1733982164198,8.03924694,232.81,232.74,3.2736]
[1733982164405,2.26,232.8,232.69,5.94566212]
[1733982164601,2.26,232.8,232.72,8.03924694]
[1733982165103,2.26,232.8,232.74,8.03924694]
[1733982165409,12.56322469,232.87,232.71,12.56322469]
[1733982165609,14.49310499,232.86,232.71,12.56322469]
[1733982165807,2.26,232.86,232.71,12.56322469]
[1733982166503,2.1465,232.84,232.77,2.147]
[1733982166709,2.1465,232.84,232.74,12.56322469]
[1733982167812,2.1465,232.84,232.78,2.1469]
[1733982169004,2.1466,232.82,232.76,2.147]
[1733982169209,2.26,232.81,232.74,12.56322469]
[1733982169413,2.26,232.8,232.74,12.56322469]
[1733982169614,2.26,232.8,232.74,14.71042469]
[1733982169807,2.26,232.8,232.74,12.56322469]
[1733982171607,2.26,232.8,232.74,14.71042469]
[1733982171913,2.26,232.8,232.74,12.56322469]
[1733982173008,2.26,232.8,232.76,2.1471]
[1733982173914,2.26,232.8,232.77,2.147]
[1733982175413,2.26,232.8,232.75,2.1471]
[1733982175615,2.26,232.8,232.74,12.56322469]
[1733982176409,3.3178,232.89,232.77,12.56322469]
[1733982176410,2.26,232.83,232.77,12.56322469]
[1733982177010,2.26,232.83,232.81,2.1467]
[1733982186429,2.26,232.83,232.79,2.1468]
[1733982188428,2.26,232.83,232.8,2.1467]
[1733982192037,2.1459,232.89,232.84,2.1463]
[1733982192339,2.26,232.88,232.84,2.1463]
[1733982192636,2.1459,232.89,232.84,2.1463]
[1733982192838,2.26,232.88,232.84,2.1463]
[1733982193235,2.26,232.87,232.84,2.1463]
[1733982196745,2.26,232.87,232.82,8.03610927]
[1733982198145,2.26,232.87,232.82,2.1465]
[1733982199143,4.4061,232.87,232.82,2.1465]
[1733982199939,2.26,232.87,232.83,8.03610927]
[1733982200745,2.26,232.87,232.85,2.1462]
[1733982201141,2.26,232.87,232.83,8.03610927]
[1733982201338,2.26,232.87,232.83,2.1464]
[1733982202745,2.26,232.87,232.84,2.1464]
[1733982208247,53.41905526,232.94,232.81,8.03610927]
[1733982208451,2.1457,232.92,232.87,2.1461]
[1733982208853,179.03569191,233.06,232.87,8.03610927]
[1733982209153,8.03610927,232.97,232.9,2.1458]
[1733982209453,2.26,232.96,232.9,2.1458]
[1733982210254,2.1456,232.93,232.88,2.1459]
[1733982211155,8.03610927,232.95,232.86,2.1461]
[1733982212654,2.1457,232.91,232.86,2.1461]
[1733982212856,2.26,232.9,232.86,2.1461]
[1733982213454,2.26,232.9,232.8,5.94566212]
[1733982213655,2.26,232.9,232.83,8.03610927]
[1733982214556,2.1459,232.89,232.84,2.1464]
[1733982215755,2.1459,232.89,232.84,10.18250927]
[1733982216962,2.26,232.9,232.76,3.3159]
[1733982217259,2.1461,232.87,232.83,8.03610927]
[1733982218252,2.26,232.9,232.85,8.03610927]
[1733982218965,2.26,232.9,232.85,10.18230927]
[1733982220062,2.26,232.9,232.87,8.03610927]
[1733982220265,2.26,232.9,232.87,10.18220927]
[1733982220560,47.28763937,232.95,232.77,23.86682036]
[1733982220768,2.1458,232.91,232.87,8.03610927]
[1733982221263,2.26,232.94,232.87,10.18220927]
[1733982221660,2.26,232.94,232.87,8.03610927]
[1733982221860,8.03610927,232.92,232.76,27.18272036]
[1733982222063,8.03610927,232.92,232.84,8.03610927]
[1733982222264,2.146,232.89,232.84,8.03610927]
[1733982222464,2.26,232.88,232.84,8.03610927]
[1733982223662,2.26,232.88,232.84,10.18250927]
[1733982224366,2.26,232.88,232.85,2.1463]
[1733982228660,2.26,232.88,232.87,2.1461]
[1733982229061,2.26,232.88,232.86,8.03610927]
[1733982231365,2.26,232.88,232.86,10.18230927]
[1733982232962,2.26,232.88,232.87,2.1461]
[1733982233267,2.26,232.92,232.86,8.03610927]
[1733982233463,2.26,232.92,232.78,5.94566212]
[1733982233464,2.26,232.92,232.89,8.03610927]
[1733982234168,10.29610927,232.92,232.82,8.03610927]
[1733982234470,10.29610927,232.92,232.84,8.03610927]
[1733982234670,2.1459,232.89,232.85,2.1463]
[1733982234871,10.29610927,232.92,232.85,2.1463]
[1733982235061,4.4057,232.92,232.88,2.146]
[1733982235262,2.26,232.92,232.88,8.03610927]
[1733982236574,2.1455,232.94,232.9,8.03610927]
[1733982236773,2.26,232.93,232.9,8.03610927]
[1733982238472,2.26,232.93,232.89,2.1459]
[1733982240974,4.4056,232.93,232.89,2.1459]
[1733982241171,2.26,232.93,232.79,5.94566212]
[1733982241475,2.146,232.89,232.84,8.03610927]
[1733982242173,2.26,232.88,232.84,8.03610927]
[1733982242878,2.26,232.88,232.78,5.94566212]
[1733982242879,2.26,232.88,232.86,8.03610927]
[1733982244175,2.26,232.88,232.87,2.1461]
[1733982246074,4.4057,232.92,232.87,2.1461]
[1733982246871,2.26,232.92,232.88,10.18210927]
[1733982247573,2.1456,232.93,232.88,10.18210927]
[1733982247769,2.26,232.95,232.92,10.18170927]
[1733982247981,2.26,232.96,232.92,10.18170927]
[1733982248478,2.26,232.96,232.93,2.1455]
[1733982249479,2.26,233.07,232.94,8.03610927]
[1733982249674,2.26,233.07,232.87,23.86682036]
[1733982249675,2.26,233.06,232.98,8.03610927]
[1733982250272,2.26,233.06,232.98,10.18110927]
[1733982250273,2.1446,233.04,232.98,10.18110927]
[1733982251182,4.4044,233.06,232.98,10.18110927]
[1733982251472,4.4044,233.06,232.99,2.1449]
[1733982252880,2.1445,233.05,232.99,2.1449]
[1733982253077,2.26,233.06,232.97,2.1451]
[1733982253278,8.03610927,233.05,232.97,10.18120927]
[1733982254082,8.03610927,233.05,232.97,8.03610927]
[1733982254376,2.1448,233.02,232.97,8.03610927]
[1733982254977,2.1449,233.0,232.94,2.1454]
[1733982255181,2.26,233.0,232.93,3.2745]
[1733982255483,2.26,233.0,232.9,8.03610927]
[1733982255681,8.03610927,232.99,232.85,3.918]
[1733982255883,8.03610927,232.99,232.91,8.03610927]
[1733982256474,2.1452,232.97,232.89,2.1459]
[1733982256678,2.1452,232.97,232.9,8.03610927]
[1733982256880,2.26,233.0,232.92,8.03610927]
[1733982257380,2.26,232.99,232.92,8.03610927]
[1733982257581,4.405,232.99,232.92,10.18170927]
[1733982257880,4.405,232.99,232.92,8.03610927]
[1733982258679,2.26,232.99,232.93,2.1455]
[1733982258885,2.1451,232.98,232.93,2.1455]
[1733982260580,2.26,232.99,232.94,8.03610927]
[1733982260783,2.26,233.01,232.89,2.26]
[1733982260980,2.26,233.0,232.94,8.03610927]
[1733982261379,2.26,233.0,232.94,10.18150927]
[1733982261678,2.26,233.0,232.94,8.03610927]
[1733982262282,4.4049,233.0,232.94,8.03610927]
[1733982262684,4.4049,233.0,232.89,2.26]
[1733982262878,4.4049,233.0,232.94,8.03610927]
[1733982263881,2.1449,233.0,232.94,8.03610927]
[1733982264078,2.145,232.99,232.94,8.03610927]
[1733982265281,2.1455,232.94,232.88,2.1459]
[1733982265483,2.1455,232.94,232.9,8.03610927]
[1733982265789,2.26,232.95,232.92,8.03610927]
[1733982265985,2.26,232.95,232.94,8.03610927]
[1733982268085,59.74106346,233.02,232.94,8.03610927]
[1733982268283,2.26,233.01,232.98,8.03610927]
[1733982268481,2.26,233.02,232.98,8.03610927]
[1733982268885,8.03610927,233.05,232.98,8.03610927]
[1733982269084,2.26,233.02,232.98,10.18120927]
[1733982270392,2.26,233.06,233.03,2.1446]
[1733982271290,2.26,233.06,233.02,8.03610927]
[1733982271785,59.72607422,233.09,233.02,8.03610927]
[1733982271989,2.26,233.08,233.02,8.03610927]
[1733982272589,2.1443,233.07,233.01,8.03610927]
[1733982273091,10.29610927,233.08,233.01,8.03610927]
[1733982273489,8.03610927,233.06,232.97,8.03610927]
[1733982274090,8.03610927,233.06,232.99,8.03610927]
[1733982274590,2.1446,233.04,232.99,8.03610927]
[1733982274787,8.03610927,233.0,232.92,8.03610927]
[1733982274989,2.26,232.99,232.92,8.03610927]
[1733982275287,2.26,232.99,232.86,3.1743]
[1733982275288,2.26,232.98,232.94,8.03610927]
[1733982275482,8.03610927,233.03,232.94,8.03610927]
[1733982275483,2.26,232.99,232.94,8.03610927]
[1733982275685,2.26,232.99,232.93,2.1455]
[1733982275891,2.26,232.99,232.93,10.18160927]
[1733982276290,2.1451,232.98,232.93,8.03610927]
[1733982276987,2.26,232.97,232.93,8.03610927]
[1733982279091,4.4052,232.97,232.93,8.03610927]
[1733982279590,2.1453,232.96,232.9,2.1458]
[1733982280988,2.1455,232.94,232.89,8.03610927]
[1733982282690,2.1456,232.92,232.87,8.03610927]
[1733982282887,2.26,232.91,232.87,8.03610927]
[1733982283092,2.26,232.91,232.86,3.1743]
[1733982283287,2.26,232.91,232.86,8.03610927]
[1733982284297,2.26,232.91,232.85,2.1463]
[1733982284496,4.4058,232.91,232.86,8.03610927]
[1733982285399,2.1458,232.9,232.85,10.18240927]
[1733982286193,2.26,232.91,232.78,4.9654]
[1733982286390,8.03610927,232.9,232.83,8.03610927]
[1733982287291,8.03610927,232.88,232.78,7.1123]
[1733982287594,8.03610927,232.84,232.67,8.20566212]
[1733982287796,2.26,232.83,232.76,8.03610927]
[1733982288190,2.1466,232.82,232.76,8.03610927]
[1733982288388,2.26,232.83,232.68,1.7072]
[1733982288696,8.03610927,232.79,232.62,9.16366212]
[1733982288906,2.26,232.78,232.69,8.03610927]
[1733982289598,2.1471,232.76,232.69,10.18380927]
[1733982289794,2.26,232.78,232.71,8.03610927]
[1733982290197,2.147,232.77,232.71,2.1476]
[1733982290399,2.147,232.77,232.7,8.03610927]
[1733982290999,2.147,232.77,232.71,2.1476]
[1733982291297,2.26,232.78,232.72,8.03610927]
[1733982291896,4.407,232.78,232.72,10.18360927]
[1733982292590,2.26,232.77,232.72,10.18360927]
[1733982293096,4.895,232.9,232.76,8.03610927]
[1733982293301,8.03610927,232.84,232.76,8.03610927]
[1733982293602,2.26,232.83,232.76,8.03610927]
[1733982294099,2.26,232.82,232.76,8.03610927]
[1733982294699,2.26,232.82,232.76,10.18320927]
[1733982294901,2.26,232.82,232.76,8.03610927]
[1733982295500,2.26,232.82,232.74,8.03610927]
[1733982295898,10.29610927,232.82,232.63,1.5876]
[1733982296201,10.29610927,232.82,232.73,8.03610927]
[1733982296397,10.29610927,232.82,232.75,8.03610927]
[1733982296598,12.44270927,232.82,232.75,8.03610927]
[1733982296798,4.895,232.9,232.77,8.03610927]
[1733982296994,2.146,232.88,232.81,8.03610927]
[1733982297201,2.26,232.87,232.81,8.03610927]
[1733982297592,4.4061,232.87,232.81,10.18270927]
[1733982298199,2.26,232.87,232.81,8.03610927]
[1733982298401,2.1462,232.86,232.81,8.03610927]
[1733982299198,2.26,232.85,232.81,8.03610927]
[1733982300494,2.26,232.85,232.81,10.18270927]
[1733982301098,2.26,232.85,232.83,8.03610927]
[1733982301301,8.03610927,232.94,232.84,2.1464]
[1733982301506,2.26,232.93,232.85,8.03610927]
[1733982301804,2.26,232.93,232.83,8.03610927]
[1733982301805,2.146,232.89,232.83,8.03610927]
[1733982302004,2.26,232.88,232.75,2.26]
[1733982302202,2.26,232.88,232.82,8.03610927]
[1733982302598,10.29610927,232.88,232.8,8.03610927]
[1733982302807,2.26,232.88,232.82,8.03610927]
[1733982303708,2.1462,232.87,232.81,2.1466]
[1733982303909,2.1462,232.87,232.82,8.03610927]
[1733982304209,2.1457,232.91,232.86,8.03610927]
[1733982304409,2.26,232.9,232.86,8.03610927]
[1733982305005,2.26,232.9,232.83,8.03610927]
[1733982305709,2.26,232.9,232.73,2.26]
[1733982305710,2.26,232.9,232.87,8.03610927]
[1733982307314,8.03610927,232.95,232.87,8.03610927]
[1733982307508,8.03610927,232.97,232.88,2.146]
[1733982307807,2.26,232.96,232.89,8.03610927]
[1733982308715,4.4053,232.96,232.91,8.03610927]
[1733982308922,2.26,232.96,232.91,8.03610927]
[1733982309417,2.26,232.95,232.88,12.54371832]
[1733982310220,2.26,232.95,232.85,12.54371832]
[1733982310623,2.26,232.95,232.84,4.9589]
[1733982311425,2.26,232.95,232.84,7.1052]
[1733982312025,2.26,232.95,232.84,4.9589]
[1733982312225,2.146,232.88,232.82,2.1465]
[1733982312532,2.26,232.87,232.82,2.1465]
[1733982312829,2.26,232.87,232.72,1.7175]
[1733982313027,12.54371832,232.85,232.72,1.7175]
[1733982313426,2.1468,232.8,232.74,2.1473]
[1733982313727,2.26,232.79,232.74,2.1473]
[1733982314926,2.26,232.79,232.72,1.7175]
[1733982314927,2.26,232.79,232.75,2.1472]
[1733982316730,2.26,232.79,232.73,2.1473]
[1733982317033,2.26,232.79,232.72,1.7175]
[1733982317830,3.2878,232.87,232.77,2.147]
[1733982318031,2.26,232.86,232.77,2.147]
[1733982318238,2.26,232.86,232.73,12.54371832]
[1733982318529,2.26,232.86,232.73,2.1473]
[1733982318943,2.1468,232.8,232.73,2.1473]
[1733982319131,2.26,232.79,232.72,1.7175]
[1733982319333,2.26,232.78,232.72,1.7175]
[1733982319539,2.26,232.77,232.7,12.54371832]
[1733982319934,2.26,232.77,232.69,3.2155]
[1733982320638,2.26,232.77,232.64,12.54371832]
[1733982321140,2.26,232.77,232.63,1.6882]
[1733982321732,12.54371832,232.75,232.63,1.6882]
[1733982321941,12.54371832,232.72,232.59,3.189]
[1733982322235,2.26,232.71,232.59,3.189]
[1733982322635,12.54371832,232.69,232.52,1.7357]
[1733982322836,12.54371832,232.69,232.53,15.73271832]
[1733982323031,12.54371832,232.69,232.54,2.1491]
[1733982323231,2.26,232.71,232.53,3.189]
[1733982323232,12.54371832,232.66,232.53,3.189]
[1733982323436,2.26,232.65,232.53,3.189]
[1733982323739,2.1487,232.59,232.52,1.7357]
[1733982323937,2.26,232.58,232.5,12.54371832]
[1733982325240,2.149,232.56,232.48,2.1497]
[1733982325837,2.26,232.58,232.46,14.18281832]
[1733982326238,2.1489,232.57,232.46,14.18281832]
[1733982327235,2.149,232.56,232.49,2.1496]
[1733982327440,2.26,232.58,232.46,14.18281832]
[1733982327842,2.149,232.57,232.46,14.18281832]
[1733982328148,2.26,232.58,232.46,14.18281832]
[1733982329745,2.26,232.58,232.49,2.1496]
[1733982329746,2.149,232.56,232.49,2.1496]
[1733982330247,4.4089,232.58,232.46,14.18281832]
[1733982330441,2.26,232.58,232.46,14.18281832]
[1733982330645,2.26,232.58,232.49,12.54371832]
[1733982330846,2.26,232.57,232.49,12.54371832]
[1733982331648,2.26,232.57,232.52,2.1493]
[1733982332242,4.4089,232.57,232.49,2.1496]
[1733982332549,2.26,232.57,232.46,1.6391]
[1733982332949,2.26,232.57,232.46,14.18281832]
[1733982333746,2.26,232.57,232.52,2.1493]
[1733982334350,14.69221832,232.62,232.55,2.149]
[1733982334547,2.26,232.61,232.49,12.54371832]
[1733982334743,2.26,232.6,232.49,12.54371832]
[1733982334947,14.24761832,232.68,232.52,12.54371832]
[1733982335146,4.40896634,232.67,232.52,12.54371832]
[1733982335646,2.14905871,232.66,232.52,12.54371832]
[1733982335850,2.26,232.65,232.55,12.54371832]
[1733982336054,2.26,232.65,232.56,3.2336]
[1733982336549,2.26,232.65,232.59,2.1486]
[1733982337354,2.14905871,232.66,232.59,2.1486]
[1733982337550,2.26,232.64,232.59,2.1486]
[1733982339863,2.26,232.63,232.56,3.2336]
[1733982340058,2.14905871,232.66,232.56,3.2336]
[1733982340360,2.26,232.65,232.61,2.1485]
[1733982340559,2.26,232.64,232.61,2.1485]
[1733982341759,2.26,232.64,232.62,2.1484]
[1733982342757,2.26,232.64,232.56,3.2336]
[1733982342957,2.26,232.64,232.51,12.54371832]
[1733982343159,14.80371832,232.64,232.48,12.54371832]
[1733982344555,2.1486,232.61,232.55,2.1491]
[1733982344755,14.80371832,232.64,232.48,12.54371832]
[1733982346264,2.1484,232.63,232.52,2.1493]
[1733982346460,2.1484,232.63,232.48,12.54371832]
[1733982347863,2.26,232.62,232.58,2.1488]
[1733982348065,12.54371832,232.64,232.58,2.1488]
[1733982348363,2.26,232.63,232.58,2.1488]
[1733982348766,2.26,232.63,232.52,2.1493]
[1733982348965,2.26,232.63,232.48,14.80371832]
[1733982349265,2.1485,232.61,232.48,12.54371832]
[1733982349663,2.1485,232.61,232.55,2.1491]
[1733982351262,2.1485,232.61,232.48,12.54371832]
[1733982351263,4.4084,232.63,232.58,2.1488]
[1733982352558,2.1485,232.61,232.52,2.1493]
[1733982352760,2.1485,232.61,232.48,12.54371832]
[1733982353465,2.1485,232.61,232.49,4.2966828]
[1733982353672,2.1485,232.61,232.48,18.48938044]
[1733982353867,2.1485,232.61,232.48,12.54371832]
[1733982354564,2.1485,232.61,232.55,2.149]
[1733982355673,2.1485,232.61,232.56,2.149]
[1733982357271,2.26,232.63,232.5,5.94566212]
[1733982357475,2.1488,232.58,232.53,2.1492]
[1733982357672,2.26,232.57,232.53,2.1492]
[1733982358270,4.4089,232.57,232.48,23.86682036]
[1733982358470,4.4089,232.57,232.47,27.15952036]
[1733982358672,2.26,232.57,232.48,4.30815081]
[1733982358868,2.26,232.57,232.48,5.94566212]
[1733982359371,2.26,232.57,232.49,4.30807327]
[1733982359673,2.26,232.56,232.49,5.94566212]
[1733982359872,1.7155,232.65,232.5,4.30787646]
[1733982360071,2.26,232.64,232.51,10.25346986]
[1733982360272,4.4082,232.64,232.58,2.1487]
[1733982361269,2.26,232.64,232.5,12.54371832]
[1733982361471,2.1486,232.61,232.52,5.9757335]
[1733982361675,2.1486,232.61,232.51,5.9757335]
[1733982361871,2.1486,232.61,232.54,2.1491]
[1733982362178,14.80371832,232.64,232.51,5.9757335]
[1733982362473,3.3592,232.63,232.53,2.1492]
[1733982362672,12.54371832,232.6,232.53,2.1492]
[1733982362874,4.4087,232.59,232.53,2.1492]
[1733982363271,2.26,232.59,232.53,2.1492]
[1733982363479,2.1489,232.57,232.52,2.1493]
[1733982364273,2.149,232.56,232.47,9.2684335]
[1733982364481,2.149,232.56,232.48,4.30977414]
[1733982364780,2.149,232.56,232.47,5.9757335]
[1733982365073,2.149,232.56,232.48,4.31052935]
[1733982365275,12.54371832,232.56,232.48,2.1496]
[1733982366172,12.54371832,232.53,232.46,2.1498]
[1733982366372,2.26,232.52,232.46,2.1498]
[1733982367676,4.4094,232.52,232.46,2.1498]
[1733982368376,2.1494,232.51,232.46,2.1498]
[1733982369680,2.1494,232.51,232.41,3.4607]
[1733982370078,2.26,232.52,232.41,3.4607]
[1733982370381,2.26,232.52,232.46,2.1499]
[1733982370582,2.26,232.52,232.41,3.4607]
[1733982370882,2.1496,232.49,232.41,3.4607]
[1733982371379,2.1496,232.49,232.41,1.7386]
[1733982371583,2.1496,232.49,232.43,2.1502]